Cogmind - Beta 14 @@@ ROGUE MODE // 2024.11.04 @ 19:04:23 Player: Shimmyarah Result: Self-destructed Performance ------------- Evolutions (3) 1500 Regions Visited (4) 800 Robots Destroyed (25) 125 Value Destroyed (531) 531 Prototype IDs (0) 0 Alien Tech Used (0) 0 Bonus (0) 0 TOTAL SCORE: 2956 Bonus ------- None Cogmind --------- Core Integrity 44/700 Matter 99/300 Energy 100/100 System Corruption 6% Temperature Cool (0) Movement Core (350) Ox6 Location -7/Factory Parts ------- > --- POWER (2) -------- (None) > --- PROPULSION (2) --- (None) > --- UTILITY (4) ------ Large Storage Unit > --- WEAPON (5) ------- (None) > --- INVENTORY (15) --- (None) Peak State ------------ > --- POWER ------------ Ion Engine Ion Engine > --- PROPULSION ------- Light Treads Improved Treads > --- UTILITY ---------- Heat Sink Terrain Scanner Seismic Detector > --- WEAPON ----------- Minigun Minigun > --- INVENTORY -------- Weapon Shielding Particle Gun Minigun Minigun Mining Laser [Rating: 15] Favorites ----------- Power Ion Engine Engine Ion Engine Power Core Light Nuclear Core Propulsion Light Treads Treads Light Treads Utility Seismic Detector Device Seismic Detector Storage Large Storage Unit Protection Improved Weapon Shielding Weapon Minigun Energy Gun Heavy EM Pulse Gun Energy Cannon EM Pulse Cannon Ballistic Gun Minigun Launcher Heavy Rocket Launcher Special Weapon Mining Laser Build | -11 -10 -9 -8 -7 ------- Run | Yrd Mat Mat Mat Fac Slots Evolved 6 | . . 2 2 2 Power 1 | . . 1 . . Propulsion . | . . . . . Utility 2 | . . 1 . 1 Weapon 3 | . . . 2 1 Parts Attached 41 | 7 2 16 8 8 Power 4 | 1 . 1 2 . Engine 3 | 1 . 1 1 . Core 1 | . . . 1 . Reactor . | . . . . . Propulsion 3 | 2 . 1 . . Treads 3 | 2 . 1 . . Leg . | . . . . . Wheel . | . . . . . Hover . | . . . . . Flight . | . . . . . Utility 12 | 1 . 4 2 5 Device 7 | 1 . 3 1 2 Storage 1 | . . . . 1 Processor . | . . . . . Hackware . | . . . . . Protection 4 | . . 1 1 2 Artifact . | . . . . . Weapon 22 | 3 2 10 4 3 Energy Gun 9 | 2 2 3 1 1 Energy Cannon 1 | . . . . 1 Ballistic Gun 7 | . . 5 2 . Ballistic Cannon . | . . . . . Launcher 1 | . . . . 1 Special Weapon 4 | 1 . 2 1 . Impact Weapon . | . . . . . Slashing Weapon . | . . . . . Piercing Weapon . | . . . . . Special Melee Weapon . | . . . . . Unidentified Prototypes . | . . . . . Corrupted Parts 2 | 2 . . . . System Corruption 3 | 3 . . . . Parts Lost 24 | . . 9 8 7 Power 4 | . . 2 2 . Propulsion 2 | . . 2 . . Utility 9 | . . 3 2 4 Weapon 9 | . . 2 4 3 Highest Loss Streak 9 | . . 9 6 3 To Critical Strikes . | . . . . . Average Slot Usage (%) 52 | . 71 83 24 14 Engine 10 | . 14 19 1 . Treads 12 | . 28 19 . . Device 10 | . . 23 3 3 Protection 1 | . . 1 1 2 Energy Gun 7 | . 22 7 3 3 Ballistic Gun 5 | . . 8 12 . Special Weapon 3 | . 5 5 1 . Peak Build Rating 15 | 6 7 15 14 10 Average Rating 7 | 4 6 10 6 6 On Entrance 2 | . 6 7 1 . Naked Turns 83 | . . 18 16 49 Heaviest Build 29 | 9 11 19 25 29 Greatest Support 43 | 40 40 43 3 3 Greatest Overweight (x) 9 | 1 . . 8 9 Average Overweight (x) . | . . . 1 . Largest Inventory Capacity 15 | 5 5 5 5 15 Average Capacity 5 | 5 5 5 5 6 Most Carried 5 | 5 5 5 4 3 Average Carried 2 | 2 4 3 . . Final Capacity 15 | 5 5 5 5 15 Final Carried 5 | 3 5 5 . . Class Distribution -------------------- 95% | Mutant Dominant Class ---------------- Mutant | -10/Materials Mutant | -9/Materials Mutant | -8/Materials Mutant | -7/Factory Resources | -11 -10 -9 -8 -7 ----------- Run | Yrd Mat Mat Mat Fac Matter Collected 519 | 255 35 217 12 . Remotely . | . . . . . Salvage Created 668 | 202 111 174 145 36 Parts 39 | 9 5 10 4 11 Haulers Intercepted . | . . . . . Recyclers Shooed . | . . . . . Parts Field Recycled . | . . . . . Retrieved Matter . | . . . . . Parts Self-Destructed . | . . . . . Prevented . | . . . . . Kills | -11 -10 -9 -8 -7 ------- Run | Yrd Mat Mat Mat Fac Combat Hostiles Destroyed 10 | . 4 4 1 1 Melee 1 | . . 1 . . Guns 5 | . 1 3 1 . AOE 4 | . 3 . . 1 Classes Destroyed 9 | 3 3 1 . 2 Worker 4 | 2 . . . 2 Builder 3 | . . . . 3 Tunneler 5 | 5 . . . . Recycler 2 | 1 . . 1 . Operator 1 | . 1 . . . Swarmer 3 | . 3 . . . Grunt 4 | . 1 3 . . Sentry 2 | . . 1 1 . Programmer 1 | . . . . 1 Best Kill Streak 6 | 5 3 2 2 6 Combat Bots Only 3 | . 3 2 1 1 Max Kills in Single Turn 3 | 2 3 1 1 3 Gunslinging . | . . . . . Exploded 3 | . 3 . . 1 Melee 1 | . . 1 . . Uniques/NPCs Destroyed . | . . . . . Combat | -11 -10 -9 -8 -7 -------- Run | Yrd Mat Mat Mat Fac Hostile Shots Fired 433 | . 36 95 88 214 Missed 147 | . 8 22 27 90 Damage Taken 3714 | 68 258 996 1139 1253 Core 1413 | . 48 238 471 656 Absorbed by Shields . | . . . . . Redirected to Shielding 149 | . . 53 . 96 Core Remaining (%) 58 | 100 80 40 14 . Volleys Fired 79 | 21 16 26 6 10 Largest 4 | 2 2 2 4 1 Hottest 215 | 90 165 145 215 39 Shots Fired 145 | 42 32 42 19 10 Gun 120 | 42 30 30 18 . Cannon . | . . . . . Launcher 10 | . . . . 10 Special 15 | . 2 12 1 . Kinetic 32 | . . 20 12 . Thermal 62 | 21 18 16 7 . Explosive 10 | . . . . 10 Electromagnetic 41 | 21 14 6 . . Robot Hit Streak 10 | 7 9 4 9 10 Robot Miss Streak 5 | 3 5 3 2 2 Penetration Max . | . . . . . Secondary Targets 1 | . . 1 . . Max Gunslinging Chain 1 | . . 1 . . Shots Hit Robots 62 | 20 11 15 12 4 Core Hits 41 | 9 5 9 6 12 Critical Kills . | . . . . . Critical Parts Destroyed . | . . . . . Critical Strikes 4 | 2 2 . . . Burn 3 | 2 1 . . . Corrupt 1 | . 1 . . . Melee Attacks . | . . . . . Impact . | . . . . . Slashing . | . . . . . Piercing . | . . . . . Sneak Attacks . | . . . . . Combat Hostiles . | . . . . . Follow-up Attacks . | . . . . . Damage Inflicted 1962 | 394 324 274 227 743 Guns 922 | 281 209 238 194 . Cannons . | . . . . . Explosions 937 | 107 112 . . 718 Melee . | . . . . . Ramming 103 | 6 3 36 33 25 Kinetic 366 | . . 202 164 . Thermal 498 | 230 214 24 30 . Explosive 718 | . . . . 718 Electromagnetic 277 | 158 107 12 . . Impact . | . . . . . Slashing . | . . . . . Piercing . | . . . . . Highest Corruption 6 | 3 3 . . 6 Average Corruption 2 | 1 3 . . 2 Corruption Purged . | . . . . . Corruption Blocked . | . . . . . Effects 6 | 1 4 . . 1 Message Errors 2 | . 2 . . . Matter Fused 1 | . 1 . . . Heat Flow Errors 1 | 1 . . . . Energy Discharges 1 | . . . . 1 Parts Fused 1 | . 1 . . . Overload Shots . | . . . . . Overflow Damage 46 | 2 . . . 44 Projectiles . | . . . . . Explosions 46 | 2 . . . 44 Melee . | . . . . . Knockbacks 1 | . . . . 1 Impact 1 | . . . . 1 Kinetic . | . . . . . Secondary . | . . . . . Self-Inflicted Damage 217 | 69 . 7 14 127 Shots 5 | 2 . . . 3 Rammed 44 | 1 1 22 9 11 Targets Rammed 45 | 1 1 23 9 11 Kicked . | . . . . . Crushed 1 | . . 1 . . Highest Temperature 372 | 330 372 165 371 . Average Temperature 110 | 115 144 39 151 . Received Heat Transfer 1125 | . 78 354 549 144 Effects 4 | . 1 . 3 . Shutdowns 1 | . 1 . . . Energy Bleed 1 | . . . 1 . Interference 1 | . . . 1 . Damage (minor) 1 | . . . 1 . Siege Activations . | . . . . . Robots Corrupted . | . . . . . Combat Hostiles . | . . . . . Parts Fried 2 | 2 . . . . Impact Corruptions . | . . . . . Robots Melted . | . . . . . Combat Hostiles . | . . . . . Parts Melted 5 | 3 2 . . . Heat Transferred 1212 | 718 346 74 74 . Parts Sabotaged . | . . . . . Parts Stolen . | . . . . . Parts Stripped . | . . . . . Power Chain Reactions 4 | 2 2 . . . Alert | -11 -10 -9 -8 -7 ------- Run | Yrd Mat Mat Mat Fac Peak Influence 305 | 40 145 113 88 305 Initial 61 | . 26 61 22 30 Average 59 | 19 80 76 53 53 Maximum Alert Level 1 | . . . . 1 Low Security (%) 98 | 100 100 100 100 92 Level 1 1 | . . . . 7 Level 2 . | . . . . . Level 3 . | . . . . . Level 4 . | . . . . . Level 5 . | . . . . . High Security . | . . . . . Max Security . | . . . . . Squads Dispatched 3 | . 1 . . 2 Investigation . | . . . . . Extermination 1 | . . . . 1 Reinforcement 2 | . 1 . . 1 Assault . | . . . . . Garrison . | . . . . . Intercept . | . . . . . Searches Triggered . | . . . . . Construction Impeded 1 | . . . . 1 Haulers Reinforced . | . . . . . Active Scanning Responses . | . . . . . Cargo Convoy Interrupts . | . . . . . Stealth | -11 -10 -9 -8 -7 --------- Run | Yrd Mat Mat Mat Fac Distress Signals 1 | . . 1 . . Communications Jammed . | . . . . . Distress Signals . | . . . . . Times Spotted 39 | . 5 14 15 5 Peak Tracking Total 9 | . 3 7 9 4 Tactical Retreats 4 | . . 1 2 1 Traps | -11 -10 -9 -8 -7 ------- Run | Yrd Mat Mat Mat Fac Traps Triggered . | . . . . . Indirectly . | . . . . . Trap Hack Attempts . | . . . . . Triggered . | . . . . . Disarmed . | . . . . . Reprogrammed . | . . . . . Reused . | . . . . . Traps Extracted . | . . . . . Installed . | . . . . . Triggered . | . . . . . Machines | -11 -10 -9 -8 -7 ---------- Run | Yrd Mat Mat Mat Fac Machines Disabled 12 | . 1 . . 11 Max in Single Turn 4 | . 1 . . 4 Machines Repaired . | . . . . . Machines Dismantled . | . . . . . Machines Sabotaged . | . . . . . Overloaded Fab Kills . | . . . . . Hacking | -11 -10 -9 -8 -7 --------- Run | Yrd Mat Mat Mat Fac Machines Accessed . | . . . . . Terminals . | . . . . . Fabricators . | . . . . . Repair Stations . | . . . . . Recycling Units . | . . . . . Scanalyzers . | . . . . . Garrison Access . | . . . . . Total Hacks . | . . . . . Successful . | . . . . . Failed . | . . . . . Catastrophic . | . . . . . Database Lockouts . | . . . . . Manual . | . . . . . Terminals . | . . . . . Fabricators . | . . . . . Repair Stations . | . . . . . Recycling Units . | . . . . . Scanalyzers . | . . . . . Garrison Access . | . . . . . Terminal Hacks . | . . . . . Fabricator Hacks . | . . . . . Repair Station Hacks . | . . . . . Recycling Unit Hacks . | . . . . . Scanalyzer . | . . . . . Garrison Access Hacks . | . . . . . Unauthorized Hacks . | . . . . . Terminals . | . . . . . Fabricators . | . . . . . Repair Stations . | . . . . . Recycling Units . | . . . . . Scanalyzers . | . . . . . Garrison Access . | . . . . . Data Cores Recovered . | . . . . . Used . | . . . . . Hacking Detections . | . . . . . Full Trace Events . | . . . . . Feedback Events . | . . . . . Feedback Blocked . | . . . . . Robot Schematics Acquired . | . . . . . Robots Built . | . . . . . Authchips . | . . . . . Time . | . . . . . Total Robot Build Rating . | . . . . . Part Schematics Acquired . | . . . . . Parts Built . | . . . . . Authchips . | . . . . . Time . | . . . . . Total Part Build Rating . | . . . . . Parts Repaired . | . . . . . Time . | . . . . . Parts Recycled . | . . . . . Recycled Matter . | . . . . . Retrieved Matter . | . . . . . Retrieved Components . | . . . . . Parts Scanalyzed . | . . . . . Part Schematics Acquired . | . . . . . Parts Damaged . | . . . . . Bothacking | -11 -10 -9 -8 -7 ------------ Run | Yrd Mat Mat Mat Fac Used RIF Installer . | . . . . . Robots Hacked . | . . . . . Non-combat . | . . . . . Combat . | . . . . . Robot Hacks Applied . | . . . . . Relay Couplers Released . | . . . . . Fabnet Peak Effective % . | . . . . . Robots Rewired . | . . . . . Allies Hacked . | . . . . . Hacks Repelled . | . . . . . Allies | -11 -10 -9 -8 -7 -------- Run | Yrd Mat Mat Mat Fac Total Allies . | . . . . . Largest Group . | . . . . . Highest-Rated Group . | . . . . . Highest-Rated Ally . | . . . . . Total Orders . | . . . . . Ally Attacks . | . . . . . Total Damage . | . . . . . Kills . | . . . . . Allies Corrupted . | . . . . . Allies Melted . | . . . . . Intel | -11 -10 -9 -8 -7 ------- Run | Yrd Mat Mat Mat Fac Robot Analysis Total . | . . . . . Derelict Logs Recovered . | . . . . . Drone Launches . | . . . . . Drone Recoveries . | . . . . . Exploration | -11 -10 -9 -8 -7 ------------- Run | Yrd Mat Mat Mat Fac Turns Passed 1631 | 255 217 554 240 365 Spaces Moved 994 | 115 97 265 196 321 Core 548 | 13 . 18 196 321 Treads 446 | 102 97 247 . . Legs . | . . . . . Wheels . | . . . . . Hover . | . . . . . Flight . | . . . . . Fastest Speed 50 | 50 160 50 50 50 Average Speed 125 | 150 160 152 102 98 Slowest Speed 500 | 160 160 160 450 500 Overloaded Moves . | . . . . . Propulsion Burnouts . | . . . . . Robots Hopped . | . . . . . Cave-ins Triggered . | . . . . . Exploration Rate (%) 15 | 6 22 23 20 8 Regions Visited 4 Branch Regions . Pre-discovered Areas . | . . . . . Known Exits Taken . | . . . . . Unknown Exits Taken 4 | 1 1 1 1 . Scrap Searched . | . . . . . Spaces Dug 9 | . 1 8 . . Terrain Destroyed 75 | 5 7 9 . 54 Melee . | . . . . . Projectile 10 | . 1 9 . . AOE 65 | 5 6 . . 54 Terrain Rammed . | . . . . . Walls Destroyed . | . . . . . Machines Disabled . | . . . . . Actions | -11 -10 -9 -8 -7 --------- Run | Yrd Mat Mat Mat Fac Total 1197 | 154 124 340 221 358 Wait . | . . . . . Move 990 | 114 96 264 195 321 Hop . | . . . . . Pick Up 33 | 10 5 7 3 8 Fast Attach 1 | . . 1 . . Attach 27 | 6 . 5 8 8 Detach . | . . . . . Swap 13 | 1 2 10 . . Drop 9 | 1 4 4 . . Fire 79 | 21 16 26 6 10 Melee . | . . . . . Ram 29 | . . 9 9 11 Kick . | . . . . . Crush 16 | 1 1 14 . . Escape Stasis . | . . . . . Rewire . | . . . . . Trap . | . . . . . Miscellaneous . | . . . . . Route ------- -11/Scrapyard -10/Materials -9/Materials -8/Materials -7/Factory History --------- Turn | Location | Event 24 | -11/Scrapyard | Discovered new exit (range 15) 256 | -11/Scrapyard | Entered Materials 300 | -10/Materials | Build established: Mutant 447 | -10/Materials | Discovered new exit (range 16) 473 | -10/Materials | Entered another Materials area 473 | -9/Materials | Evolved 2 slots: Power x1, Utility x1 1014 | -9/Materials | Core integrity fell below 50% 1019 | -9/Materials | Discovered new exit (range 15) 1027 | -9/Materials | Entered another Materials area 1027 | -8/Materials | Evolved 2 slots: Weapon x2 1040 | -8/Materials | Lost 9 parts (2p2n3u2w) 1196 | -8/Materials | Lost 6 parts (1p2u3w) 1229 | -8/Materials | Core integrity fell below 50% 1263 | -8/Materials | Discovered new exit (range 8) 1264 | -8/Materials | Core integrity fell below 20% 1267 | -8/Materials | Entered Factory 1267 | -7/Factory | Evolved 2 slots: Utility x1, Weapon x1 1507 | -7/Factory | Lost 3 parts (1u2w) 1526 | -7/Factory | Core integrity fell below 50% 1624 | -7/Factory | Core integrity fell below 20% 1632 | -7/Factory | Self-destructed Last Messages --------------- dispatching reinforcements to local area. 01610_ The unstable cave ceiling collapses. 01611_ U-05 Engineer destroyed. 01612_ U-05 Engineer lays Concrete. 01613_ U-05 Engineer builds a Wall. 01616_ K-01 Serf collects debris. 01617_ U-05 Engineer builds a Door. 01620_ K-01 Serf collects debris. 01620_ U-05 Engineer builds a Wall. 01622_ System corrupted: Energy discharge (-21). 01622_ U-05 Engineer builds a Wall. 01623_ The unstable cave ceiling collapses. 01624_ K-01 Serf collects debris. 01626_ Imp. Weapon Shielding destroyed. 01627_ U-05 Engineer lays Concrete. 01627_ K-01 Serf collects debris. 01628_ U-05 Engineer lays Concrete. 01629_ Hvy. Rocket Launcher destroyed. 01631_ U-05 Engineer builds a Wall. 01631_ K-01 Serf collects debris. Map ----- +----------------------------------------------------+ | ?????????????????????????????????????????????????? | | ???????????????????????????????????????????????### | | ???????????????????????????????????????????????# | | ??????????????????????????????????????????????## | | ??????????????????????????????????????????????? | | ??????????????????????????????????????????????? | | ?????????????????????????????????????????????????? | | ?????????????????????????????????????????????????? | | ?????????????????????????????????????????????????? | | ?????????????????????????????????????????????????? | | ?????????????????????????????????????????????????? | | ?????????????????????????????????????????????????# | | ?????????????????????????????????????????????????# | | ?????????????????????????????????????????????????# | | ?????????????????????????????????????????????????# | | ?????????????????????????????????????????????????# | | ?????????????????????????????????????????????????# | | ?????????????????????????????????????????????????# | | ?????????????????????????????????????????????????# | | ?????????????????????????????????????????????????# | | ??????????????????????##########?????????????????# | | ??????????????????##### #?????????????????# | | ??????????????????# #?????????????????? | | ??????????????????# " ##??????????####### | | ?????????????????## " #??????????# | | ?????????????????## " @ #??#########+##### | | ?????????????????##u #??# #???? | | ??????????????# a /p #??# """"""" #???? | | ??????????????##### #??# """"""" #???? | | ????????????????# #??# """"""" #???? | | ????????????????# = #?# """"""" #???? | | ????????????????# % #?# #???? | | ????????????????# *k ##?# #???? | | ????????????????### # ??# #???? | | ?????????????????## ##########/########? | | ?????????? | | ?????????? | | ?????????? | | ??????????? | | ???????????"" """ """ p | | ???????????????"" """ " # T#########+######### | | ????????????????" """ """ ####?????????????????? | | ?????????????????? #????????????????????? | | ??????????????????""" """ #????????????????????? | | ??????????????????""? """ ????????????????????? | | ???????????????????????"" #????????????????????? | | ??????????????????????? #????????????????????? | | ????????????????????????" #????????????????????? | | ????????????????????????" #????????????????????? | | ????????????????????????" #????????????????????? | +----------------------------------------------------+ Best States ------------- Heat Dissipation 38 Energy Generation 15 Energy Capacity 400 Matter Stores 300 Matter Capacity 300 Sight Range 16 Terrain Scan Range 14 Terrain Scan Density 10 Armor Coverage 225 Weapon Shielding 66 Evasion (%) 50 Recoil Reduction 2 Force Boost 20 Item Schematics ----------------- None Robot Schematics ------------------ None Fabricated ------------ Nothing Alien Tech Used ----------------- None Achievements -------------- None Challenges ------------ None Game ------ Seed InsulatedAssembledWeb Manual? 0 Play Time 00:19:22 Cumulative 9.5 hours Start 2024.11.04 @ 18:47:30 End 2024.11.04 @ 19:04:23 Sessions 1 Manual Loads 0 Difficulty Rogue Special Mode None Game No. 22 Rogue 22 Adventurer 0 Explorer 0 Win Type - Total 0 Types 0/0/0/0/0/0/0/0/0 Lore% 6 Gallery% 11 Achievement% 10 Wizard Run 0 Options --------- Layout 2 ASCII 0 Keyboard 0 Movement Arrows Keybinds 0 Fullscreen 2 Font 24/Smallcaps Map View 50x49 Zoom Use 53% Tactical HUD 1 Map Filters NONE Filters NONE Steam 1 RUN: 879c61a2-ed66-4cf0-a0d5-8dc81a211280